bitfinex/quotes_ETHUSD_20240714
["timestamp","ask_amount","ask_price","bid_price","bid_amount"]
[1720934724866,1.0803278,3207.2,3206.3,2.4239]
[1720934725028,3.0,3207.4,3206.3,2.48626744]
[1720934725224,1.0804772,3207.3,3206.3,2.4239]
[1720934725430,1.0804772,3207.2,3206.3,2.4239]
[1720934725646,1.0804772,3207.1,3206.4,0.554276]
[1720934725851,1.0804772,3207.0,3206.4,0.554276]
[1720934726063,1.0804772,3207.7,3206.3,2.4239]
[1720934726259,1.0804772,3207.6,3206.3,2.4239]
[1720934726495,2.3276,3207.6,3206.0,7.02233925]
[1720934726655,1.0804772,3207.5,3206.0,7.02233925]
[1720934726851,0.64080772,3207.4,3206.0,7.02233925]
[1720934727060,1.0804772,3207.3,3206.0,7.02233925]
[1720934727666,1.0804772,3207.3,3205.9,2.4239]
[1720934728475,0.64080772,3207.4,3205.7,7.02233925]
[1720934728476,2.3276,3207.1,3205.7,7.02233925]
[1720934728675,5.3276,3207.1,3205.7,7.02233925]
[1720934728881,0.55,3207.0,3205.7,7.02233925]
[1720934729316,3.55,3207.0,3205.7,7.02233925]
[1720934729797,3.55,3207.0,3205.3,2.4239]
[1720934730091,0.77716,3206.9,3205.3,2.4239]
[1720934730470,1.85794197,3206.9,3205.3,2.4239]
[1720934733476,2.3276,3206.8,3205.3,2.4239]
[1720934733799,5.3276,3206.8,3205.3,2.4239]
[1720934734307,0.32685044,3206.7,3205.3,2.4239]
[1720934734507,0.56544504,3206.6,3205.3,2.4239]
[1720934734809,0.56544504,3206.6,3205.1,3.0]
[1720934736101,1.0808732,3206.5,3205.1,3.0]
[1720934736285,1.0808732,3206.4,3205.0,7.02233925]
[1720934736491,1.0808732,3206.3,3205.0,7.02233925]
[1720934736700,0.34084732,3206.2,3204.6,7.02233925]
[1720934736877,3.4084732,3206.1,3204.6,7.02233925]
[1720934737078,4.0808732,3206.0,3204.6,7.02233925]
[1720934737278,1.0808732,3205.9,3204.6,7.02233925]
[1720934737912,3.0,3206.0,3204.6,7.02233925]
[1720934738217,2.3276,3206.1,3204.6,7.02233925]
[1720934738218,2.3276,3205.7,3204.6,7.02233925]
[1720934739016,0.34084732,3206.2,3204.7,2.48630075]
[1720934739017,5.3276,3206.1,3204.7,2.48630075]
[1720934739177,5.3276,3206.1,3204.8,0.06239634]
[1720934739178,1.08104469,3206.0,3204.8,0.06239634]
[1720934739516,5.3276,3206.1,3204.6,7.02233925]
[1720934739712,1.64790528,3206.0,3204.6,7.72457318]
[1720934740018,0.56684473,3206.0,3204.7,0.0624025]
[1720934740512,0.56684473,3206.0,3204.8,2.4239]
[1720934741628,0.56684473,3206.0,3204.6,7.02233925]
[1720934744739,0.56684473,3206.0,3204.8,2.2735]
[1720934744936,0.56684473,3206.0,3204.9,0.23359005]
[1720934745329,0.56684473,3206.0,3204.8,2.2735]
[1720934746348,1.08107178,3205.9,3204.8,2.2735]
[1720934746535,0.56684473,3206.0,3204.8,2.2735]
[1720934747468,1.08102813,3205.9,3204.8,2.2735]
[1720934747634,0.56684473,3206.0,3204.8,2.2735]
[1720934747833,1.67046849,3205.9,3204.8,3.51513193]
[1720934748134,0.58944447,3205.9,3204.8,3.51513193]
[1720934748364,1.08105664,3205.8,3204.8,3.51513193]
[1720934748531,1.08105664,3205.7,3204.8,3.51513193]
[1720934748731,0.58944447,3205.9,3204.8,3.51513193]
[1720934749030,1.08105621,3205.8,3204.8,3.51513193]
[1720934749244,1.08105621,3205.7,3204.8,3.51513193]
[1720934749429,1.08105621,3205.6,3204.8,3.51513193]
[1720934749657,0.32689563,3205.7,3204.8,3.51513193]
[1720934749856,1.08103657,3205.6,3204.8,3.51513193]
[1720934750050,0.32689563,3205.7,3204.8,3.51513193]
[1720934750372,1.08106963,3205.6,3204.8,2.2735]
[1720934752149,1.08106718,3205.5,3204.8,2.2735]
[1720934752336,1.08106718,3205.4,3204.8,2.2735]
[1720934752538,1.08106718,3205.3,3204.8,2.2735]
[1720934752762,1.08106718,3205.6,3204.8,2.2735]
[1720934752954,1.08106718,3205.5,3204.8,2.2735]
[1720934753132,1.08106718,3205.6,3204.8,2.2735]
[1720934753338,1.08106718,3205.5,3204.8,2.2735]
[1720934753683,1.08106718,3205.4,3204.8,2.2735]
[1720934753835,1.08106718,3205.6,3204.8,2.2735]
[1720934754037,0.32689563,3205.7,3204.8,2.2735]
[1720934754038,1.08106718,3205.5,3204.8,2.50085]
[1720934754239,1.08106718,3205.6,3204.8,2.50085]
[1720934754550,1.08106718,3205.5,3204.8,2.50085]
[1720934754754,1.08106718,3205.6,3204.8,2.2735]
[1720934754954,0.32689563,3205.7,3204.8,2.2735]
[1720934754955,1.08106718,3205.5,3204.8,2.2735]
[1720934755275,1.08110468,3205.4,3204.8,2.2735]
[1720934755440,1.08110468,3205.3,3204.8,2.2735]
[1720934755659,1.08110468,3205.2,3204.5,2.2735]
[1720934755863,1.08110468,3205.1,3204.5,2.2735]
[1720934756200,1.08110468,3205.0,3204.5,2.2735]
[1720934756370,1.08110468,3204.9,3204.5,3.20308393]
[1720934756570,1.08110468,3204.8,3204.5,3.20308393]
[1720934756765,0.32689563,3205.7,3204.5,3.20308393]
[1720934756983,1.08108928,3205.6,3204.5,3.20308393]
[1720934757181,1.08108928,3205.5,3204.5,3.20308393]
[1720934757501,1.08108928,3205.4,3204.5,3.20308393]
[1720934757797,0.32689563,3205.7,3204.5,2.2735]
[1720934757798,1.08108928,3205.3,3204.5,2.2735]
[1720934757995,1.08108928,3205.6,3204.5,2.2735]
[1720934758361,0.32689563,3205.7,3204.5,2.2735]
[1720934758686,1.08110041,3205.6,3204.5,2.2735]
[1720934758894,1.08110845,3205.5,3204.5,2.2735]
[1720934759204,1.08110845,3205.4,3204.5,2.2735]
[1720934759418,1.08110845,3205.3,3204.5,2.2735]
[1720934759610,1.08110845,3205.2,3204.5,2.2735]
[1720934759759,1.08110845,3205.6,3204.5,2.2735]
[1720934759955,2.299,3205.5,3204.5,2.2735]
[1720934760182,1.4191193,3205.4,3204.5,2.2735]
[1720934760400,1.08110845,3205.3,3204.5,2.2735]
[1720934761131,1.08118516,3205.2,3204.5,2.2735]
[1720934761332,1.08118516,3205.1,3204.5,2.2735]
[1720934761651,1.08118516,3205.0,3204.5,2.2735]
[1720934761790,0.32689563,3205.7,3204.6,0.22735]
[1720934761986,1.08110875,3205.6,3204.6,0.22735]
[1720934762222,1.08110875,3205.5,3204.6,0.22735]
[1720934762526,1.08110875,3205.4,3204.5,2.2735]
[1720934762827,1.08110875,3205.3,3204.5,2.2735]
[1720934763034,1.08110875,3205.6,3204.5,2.2735]
[1720934763242,1.08110875,3205.5,3204.5,2.2735]
[1720934763443,1.08110875,3205.4,3204.5,2.2735]
[1720934763741,1.08110875,3205.3,3204.6,2.4338]
[1720934763904,1.08110875,3205.2,3204.6,2.4338]
[1720934764102,1.08105457,3205.1,3204.6,2.4338]
[1720934764465,1.08105457,3205.0,3204.6,2.4338]
[1720934764599,1.08105457,3205.0,3204.8,2.4338]
[1720934764802,1.08105457,3204.9,3204.8,2.4338]
[1720934767406,0.32689563,3205.7,3204.8,2.4338]
[1720934767618,1.08099452,3204.9,3204.8,2.4338]
[1720934768260,0.32689563,3205.7,3204.8,2.4338]
[1720934768541,1.08097431,3205.6,3204.8,2.4338]
[1720934768703,1.08097431,3205.5,3204.8,2.4338]
[1720934768905,1.08097431,3205.4,3204.8,2.4338]
[1720934769229,1.08097431,3205.3,3204.8,2.4338]
[1720934769440,1.08097431,3205.2,3204.8,2.4338]
[1720934769601,1.08097431,3205.1,3204.9,0.59279864]
[1720934769803,1.08097431,3205.0,3204.9,0.59279864]
[1720934770939,1.08103306,3205.0,3204.9,0.59279864]
[1720934771263,1.08103452,3205.0,3204.8,2.4338]
[1720934771465,1.08103452,3204.9,3204.8,2.4338]
[1720934771759,0.32689563,3205.7,3204.8,2.4338]
[1720934771760,1.08103452,3205.6,3204.8,2.4338]
[1720934771963,1.08103452,3205.5,3204.8,2.4338]
[1720934772162,1.08103452,3205.4,3204.8,2.4338]
[1720934772326,1.08103452,3205.3,3204.8,3.37941393]
[1720934772527,1.08103452,3205.2,3204.8,3.37941393]
[1720934772726,1.08103452,3205.1,3204.8,3.37941393]
[1720934772923,1.08103452,3205.0,3204.8,3.44181166]
[1720934773127,1.08103452,3204.9,3204.8,6.56212166]
[1720934773365,1.08103452,3204.9,3204.8,12.33552869]
[1720934773567,3.24511926,3207.1,3205.4,2.4338]
[1720934773568,3.0,3206.6,3205.4,2.4338]
[1720934773871,0.32685481,3206.1,3205.4,2.4338]
[1720934774068,2.3009,3206.8,3205.4,2.4338]
[1720934774238,0.32685088,3206.1,3205.4,2.989161]
[1720934774447,1.08078504,3206.0,3205.4,2.989161]
[1720934774654,1.08078504,3206.6,3205.4,2.989161]
[1720934774854,0.32685185,3206.1,3205.4,2.989161]
[1720934775072,1.08078504,3206.0,3205.4,2.989161]
[1720934775388,1.08078504,3205.9,3205.5,0.6171356]
[1720934775549,1.08078504,3205.8,3205.6,3.18189397]
[1720934775760,0.32684372,3206.4,3205.8,3.11929]
[1720934775967,1.0806171,3206.3,3205.9,9.8538]
[1720934776173,1.0806171,3206.2,3206.0,1.36592225]
[1720934776484,1.0806171,3206.1,3206.0,1.36592225]
[1720934776645,1.0806171,3206.1,3206.0,1.30354646]
[1720934777174,0.32680236,3206.9,3206.0,1.30354646]
[1720934777398,1.08059929,3206.8,3206.0,1.30354646]
[1720934777576,1.08059929,3206.8,3205.9,9.8538]
[1720934777747,1.08059929,3206.8,3206.0,2.4338]
[1720934777945,1.08059929,3206.8,3206.0,2.49617368]
[1720934779079,1.08059929,3206.8,3206.0,5.4338]
[1720934779276,1.08059929,3206.8,3206.2,3.11889]
[1720934779579,1.08059929,3206.8,3206.2,4.286055]
[1720934780348,0.32680236,3206.9,3206.2,4.286055]
[1720934780548,1.08049913,3206.8,3206.2,4.286055]
[1720934780757,1.08049913,3206.8,3206.3,3.11884]
[1720934780961,1.08049913,3206.8,3206.4,3.18112708]
[1720934781167,2.384,3208.1,3206.7,5.43505]
[1720934781372,1.08035487,3208.0,3206.8,0.06235614]
[1720934781557,0.32674998,3207.7,3206.9,3.1182]
[1720934781759,1.08035487,3207.6,3207.1,10.53803]
[1720934781981,0.32674998,3207.7,3207.2,2.37895062]
[1720934782182,1.08019251,3207.6,3207.3,1.15889206]
[1720934782377,0.32674998,3207.7,3207.3,1.15889206]
[1720934782599,1.894,3209.2,3207.3,1.15889206]
[1720934782600,1.894,3209.6,3207.5,2.3166]
[1720934782795,0.32668352,3208.7,3207.6,3.17990935]
[1720934783083,1.08009568,3208.6,3207.6,3.17990935]
[1720934783340,1.08009568,3208.5,3207.7,0.54965094]
[1720934783503,1.08009568,3208.5,3207.8,0.06234071]
[1720934783790,0.32667534,3208.6,3207.7,0.54965094]
[1720934783791,1.08009568,3208.4,3207.7,0.54965094]
[1720934783945,0.32667534,3208.6,3207.5,2.3166]
[1720934783946,1.08001544,3208.3,3207.5,2.3166]
[1720934784151,1.08010863,3208.2,3207.5,2.3166]
[1720934784383,0.32667534,3208.6,3207.5,2.3166]
[1720934784575,1.08013985,3208.5,3207.5,2.3166]
[1720934784773,1.08013985,3208.4,3207.5,2.3166]
[1720934785005,1.08013985,3208.3,3207.1,9.7366]
[1720934785285,0.29741399,3208.2,3207.1,7.42]
[1720934785583,1.08013985,3208.1,3207.1,7.42]
[1720934785783,1.3586,3208.0,3207.1,7.42]
[1720934785998,1.08013985,3207.9,3207.1,7.42]
[1720934786764,1.08032149,3207.8,3207.1,7.42]
[1720934787012,1.08032149,3207.7,3207.1,7.42]
[1720934787161,1.3586,3208.0,3207.1,7.42]
[1720934787357,1.51617981,3207.9,3207.1,7.42]
[1720934787603,1.08031981,3207.8,3207.1,7.42]
[1720934787783,0.29741399,3208.2,3207.1,7.42]
[1720934788078,1.08028136,3208.1,3207.1,7.42]
[1720934788279,1.08028136,3208.0,3207.1,7.42]
[1720934788485,1.08028136,3208.1,3207.1,7.42]
[1720934788688,1.08028136,3208.0,3207.1,7.42]
[1720934788871,1.08028136,3208.1,3207.1,8.162]
[1720934789072,1.08028136,3208.0,3207.2,2.3166]
[1720934789301,1.3586,3208.9,3207.2,2.3166]
[1720934789508,1.08015142,3208.5,3207.3,3.11783]
[1720934789811,1.3586,3208.9,3207.3,3.18017315]
[1720934789812,1.08015142,3208.4,3207.3,3.18017315]
[1720934790106,1.3586,3208.9,3207.4,0.54967732]
[1720934790405,1.0800653,3208.5,3207.4,0.54967732]
[1720934790565,1.3586,3208.9,3207.4,0.54967732]
[1720934790905,1.08010492,3208.5,3207.4,0.54967732]
[1720934791204,3.0,3208.8,3207.4,0.54967732]
[1720934791506,1.3586,3208.9,3207.5,0.36675073]
[1720934791667,1.08007433,3208.5,3207.6,2.3166]
[1720934791976,3.0,3209.0,3207.6,2.3166]
[1720934792177,1.08006703,3208.5,3207.6,2.3166]
[1720934792405,3.0,3209.0,3207.6,2.3166]
[1720934792579,3.0,3209.0,3207.7,0.26833507]
[1720934792774,1.08006889,3208.5,3207.7,0.26833507]
[1720934792994,3.0,3209.0,3207.7,0.26833507]
[1720934793303,1.08006807,3208.5,3207.7,0.26833507]
[1720934793625,3.0,3209.0,3207.7,0.26833507]
[1720934793905,1.08008526,3208.5,3207.8,0.25849351]
[1720934794201,1.08014049,3208.4,3207.6,2.3166]
[1720934794400,1.08018463,3208.3,3207.6,2.3166]
[1720934794620,3.0,3209.0,3207.6,2.3166]
[1720934794819,1.08019805,3208.5,3207.2,2.3166]
[1720934794967,1.08019805,3208.4,3207.3,0.97366]
[1720934795168,1.08019805,3208.5,3207.3,0.97366]
[1720934795676,1.08019805,3208.5,3207.2,2.3166]
[1720934796384,1.08013869,3208.4,3207.2,2.3166]
[1720934796582,0.32667534,3208.6,3207.2,2.3166]
[1720934796897,1.08019106,3208.5,3207.2,2.3166]
[1720934797095,0.32667534,3208.6,3207.2,2.3166]
[1720934797274,1.08017121,3208.4,3207.3,0.23166]
[1720934797474,1.08017121,3208.3,3207.3,0.23166]
[1720934797696,0.32667534,3208.6,3207.3,0.23166]
[1720934798007,1.08014654,3208.5,3207.3,0.23166]
[1720934798305,1.08014654,3208.4,3207.3,0.23166]
[1720934798510,1.08014654,3208.5,3207.4,0.254826]
[1720934798684,1.08014654,3208.4,3207.4,0.254826]
[1720934798886,1.08014968,3208.3,3207.4,0.254826]
[1720934799083,0.32667534,3208.6,3207.4,0.254826]
[1720934799291,1.08014993,3208.5,3207.4,0.254826]
[1720934799605,1.08014993,3208.4,3207.4,0.254826]
[1720934799979,1.08017774,3208.3,3207.4,0.254826]
[1720934800182,0.32669972,3208.5,3207.2,2.3166]
[1720934800183,1.08017774,3208.2,3207.2,2.3166]
[1720934800403,1.08017774,3208.4,3207.2,2.3166]
[1720934800611,1.08017774,3208.3,3207.2,2.3166]
[1720934800927,1.08017774,3208.2,3207.3,0.23166]
[1720934801103,1.08017774,3208.1,3207.3,0.23166]
[1720934801402,1.08017774,3208.0,3207.3,0.23166]
[1720934801703,1.08017774,3207.9,3207.3,0.23166]
[1720934801869,1.08017774,3208.4,3207.3,0.23166]
[1720934802220,1.08020749,3208.3,3207.5,2.3369]
[1720934802418,1.08020749,3208.2,3207.5,2.3369]
[1720934802575,1.08020749,3208.1,3207.5,2.3369]
[1720934802776,1.08020749,3208.0,3207.5,2.3369]
[1720934802973,0.32669972,3208.5,3207.6,0.26540751]
[1720934803210,1.08006367,3208.4,3207.7,2.3369]
[1720934803590,1.08006367,3208.3,3207.7,2.3369]
[1720934803813,1.08006367,3208.4,3207.7,2.3369]
[1720934804004,1.08006367,3208.3,3207.7,2.3369]
[1720934804206,1.08006367,3208.2,3207.8,0.57198975]
[1720934804524,1.08006367,3208.1,3207.9,2.3369]
[1720934804695,7.32,3209.6,3208.3,2.3369]
[1720934804903,0.32662456,3209.3,3208.4,0.06232592]
[1720934805229,1.07980504,3209.2,3208.4,0.06232592]
[1720934805546,1.07980504,3209.1,3208.5,5.69353259]
[1720934805678,0.32662456,3209.3,3208.6,0.06232275]
[1720934805679,1.07980504,3209.0,3208.6,0.06232275]
[1720934805882,0.32662456,3209.3,3208.6,0.06232275]
[1720934806114,1.0796596,3209.2,3208.6,0.06232275]
[1720934806329,0.32662456,3209.3,3208.6,0.06232275]
[1720934806638,1.07965997,3209.2,3208.7,0.57558553]
[1720934806838,1.07965997,3209.1,3208.7,0.57558553]
[1720934806984,1.07965997,3209.0,3208.7,0.57558553]
[1720934807182,1.07965997,3208.9,3208.7,0.57558553]
[1720934807428,1.07965997,3209.2,3208.7,0.57558553]
[1720934807596,1.07965997,3209.2,3208.5,2.57682259]
[1720934807997,1.07965997,3209.2,3208.0,2.3369]
[1720934808213,1.07965997,3209.2,3208.0,5.3369]
[1720934808609,1.07965997,3209.2,3208.0,2.3369]
[1720934809515,0.32662456,3209.3,3208.0,2.3369]
[1720934809689,1.08001093,3209.1,3208.0,2.3369]
[1720934809884,0.32662456,3209.3,3208.0,2.3369]
[1720934810235,1.41267787,3209.2,3208.0,2.3369]
[1720934810532,1.08001541,3209.1,3208.0,2.3369]
[1720934811715,0.55,3209.0,3208.0,2.3369]
[1720934812034,1.08001541,3208.9,3208.0,2.3369]
[1720934812886,1.08001964,3208.8,3208.0,2.3369]
[1720934813122,1.08001964,3208.7,3208.0,2.57059]
[1720934813436,1.08001964,3208.6,3208.0,2.57059]
[1720934813623,0.32662456,3209.3,3208.0,5.68779]
[1720934813624,1.08001964,3208.5,3208.0,5.68779]
[1720934813801,1.08001964,3208.4,3208.0,5.68779]
[1720934813985,1.08001964,3208.3,3208.0,5.68779]
[1720934814186,1.08001964,3208.2,3208.1,0.568779]
[1720934815095,1.08001964,3208.2,3208.0,2.57059]
[1720934815409,1.08001964,3208.1,3208.0,2.57059]
[1720934816200,1.079988,3208.1,3208.0,2.57059]
[1720934817739,1.079988,3208.1,3208.0,2.3369]
[1720934818396,1.079988,3208.1,3208.0,2.3283]
[1720934819404,0.32662456,3209.3,3208.0,2.3283]
[1720934819598,9.214,3209.1,3208.0,2.3283]
[1720934819799,9.214,3209.1,3207.3,3.0]
[1720934819800,4.08003653,3209.0,3207.3,3.0]
[1720934820025,2.54616018,3208.9,3207.3,6.11788]
[1720934820220,4.08003653,3208.8,3207.3,3.0]
[1720934820422,1.08003653,3208.7,3207.2,6.1179]
[1720934820841,1.08003653,3208.7,3207.3,3.11788]
[1720934821137,1.08003653,3208.7,3207.2,3.0]
[1720934821351,0.44066982,3208.6,3207.2,3.0]
[1720934821655,1.08003653,3208.5,3207.0,2.2645]
[1720934821954,1.08017902,3208.4,3207.0,2.2645]
[1720934822247,1.08017902,3208.3,3207.0,3.102785]
[1720934822398,1.08017842,3208.2,3207.0,3.102785]
[1720934824240,1.08017842,3208.2,3207.0,6.220945]
[1720934824541,1.08017842,3208.2,3207.0,3.102785]
[1720934824744,3.0,3208.5,3207.0,2.2645]
[1720934825042,2.33466982,3208.6,3207.0,2.2645]
[1720934825043,0.44066982,3208.6,3207.0,2.2645]
[1720934825339,0.44066982,3208.6,3207.0,5.38266]
[1720934825545,4.46612365,3208.9,3207.1,3.11806]
[1720934825706,7.87,3208.7,3207.1,3.11806]
[1720934826044,3.0,3208.6,3207.1,3.11806]
[1720934826404,3.0,3208.6,3207.3,3.11787]
[1720934827445,3.0,3208.6,3207.4,2.2645]
[1720934827745,4.06466616,3208.6,3207.5,0.538237]
[1720934829049,4.06466616,3208.6,3207.4,5.38228]
[1720934829050,4.06466616,3208.6,3207.4,2.2645]
[1720934829345,4.01466616,3208.6,3207.4,2.2645]
[1720934834769,4.01466616,3208.6,3206.6,2.2645]
[1720934834770,1.3672,3208.5,3206.6,2.2645]
[1720934834971,0.55,3208.4,3206.6,2.2645]
[1720934835142,0.19172,3208.3,3206.7,3.656776]
[1720934835791,0.32669319,3208.2,3206.7,3.656776]
[1720934836010,0.32669319,3208.2,3206.7,0.538316]
[1720934837243,0.32669319,3208.2,3206.6,5.38306]
[1720934837244,0.32669319,3208.2,3206.6,2.8145]
[1720934837462,0.55,3208.1,3206.6,2.2645]
[1720934837846,3.55,3208.1,3206.6,2.2645]
[1720934839765,3.55,3208.1,3205.9,2.2645]
[1720934839766,1.894,3207.8,3205.9,2.2645]
[1720934839939,0.7394,3207.7,3205.9,2.802879]
[1720934840135,1.08052203,3207.6,3205.9,2.802879]
[1720934840368,0.7394,3207.7,3205.9,2.802879]
[1720934840369,1.08052203,3207.5,3205.9,2.802879]
[1720934840568,11.0594,3207.7,3205.9,2.802879]
[1720934840569,1.08052203,3207.6,3205.9,2.802879]
[1720934840776,11.0594,3207.7,3205.9,2.802879]
[1720934840777,1.08052203,3207.5,3205.9,2.802879]
[1720934840986,1.08052203,3207.6,3206.0,0.5922169]
[1720934841269,1.08052203,3207.5,3206.0,0.5922169]
[1720934841474,1.08052203,3207.6,3206.0,0.5922169]
[1720934843142,1.08052203,3207.6,3206.1,2.32687081]
[1720934843335,1.08050744,3207.5,3206.1,5.44592081]
[1720934843536,1.08050744,3207.4,3206.2,0.60381377]
[1720934843773,1.08050744,3207.6,3206.2,0.60381377]
[1720934843964,1.08053562,3207.5,3206.2,0.60381377]
[1720934844161,1.08053562,3207.4,3206.2,0.60381377]
[1720934844476,1.08053562,3207.3,3206.2,0.60381377]
[1720934844679,1.08053562,3207.6,3206.3,0.59873638]
[1720934844864,1.08053562,3207.5,3206.3,0.59873638]
[1720934845068,1.08053562,3207.4,3206.3,0.59873638]
[1720934845374,1.08053562,3207.3,3206.3,0.59873638]
[1720934845578,1.08053562,3207.2,3206.3,0.59873638]
[1720934845774,2.32087562,3207.6,3206.1,5.38355]
[1720934845953,1.08053562,3207.5,3206.1,5.38355]
[1720934846153,1.08053562,3207.4,3206.1,5.38355]
[1720934846382,1.08053562,3207.3,3206.1,5.38355]
[1720934846555,3.1894,3207.7,3206.2,0.06237084]
[1720934846764,1.58884487,3207.6,3206.2,0.66618461]
[1720934847071,1.08050487,3207.5,3206.3,0.06237084]
[1720934847377,1.08050487,3207.5,3206.6,3.1185]
[1720934847563,1.08050487,3208.1,3206.7,2.3403]
[1720934847764,1.08050487,3208.0,3206.7,2.88618]
[1720934847956,1.08050487,3207.9,3206.7,2.3403]
[1720934848138,1.08050487,3207.8,3206.7,2.3403]
[1720934848341,1.51839066,3208.4,3206.7,2.3403]
[1720934848342,1.08050487,3207.7,3206.7,2.3403]
[1720934848586,1.08050487,3207.6,3206.7,2.3403]
[1720934848790,1.08050487,3207.5,3206.7,2.3403]
[1720934848992,1.51839066,3208.4,3206.8,0.545885]
[1720934848993,1.08050487,3207.4,3206.8,0.545885]
[1720934849155,1.3672,3208.4,3206.8,0.545885]
[1720934849156,1.08050487,3207.3,3206.8,0.545885]
[1720934849488,1.08050487,3207.2,3206.9,2.3403]
[1720934849775,3.19172,3208.3,3206.9,2.3403]
[1720934849776,1.08050487,3207.1,3206.9,2.3403]
[1720934850007,3.19172,3208.3,3207.0,0.6004545]
[1720934850299,1.08035952,3208.1,3207.0,0.6004545]
[1720934850461,3.19172,3208.3,3207.0,0.6004545]
[1720934850462,1.08035952,3208.0,3207.0,0.6004545]
[1720934850662,1.08035952,3207.9,3207.0,0.6004545]
[1720934850863,1.08035952,3207.8,3207.0,0.6004545]
[1720934851108,1.08035952,3207.7,3207.1,0.60590145]
[1720934851297,1.08035952,3207.6,3207.1,0.60590145]
[1720934851493,1.08035952,3207.5,3206.9,2.3403]
[1720934851703,1.08035952,3207.6,3206.9,5.45857]
[1720934851884,1.08035952,3207.5,3206.9,5.45857]
[1720934852211,1.08035952,3207.4,3206.9,2.3403]
[1720934852505,0.32670251,3207.7,3206.9,2.3403]
[1720934852506,1.08035952,3207.3,3206.9,2.3403]
[1720934852661,1.08035952,3207.6,3207.0,0.545867]
[1720934852864,1.08035952,3207.5,3207.0,0.545867]
[1720934853092,1.08035952,3207.4,3207.0,0.545867]
[1720934853285,1.08031941,3207.3,3207.0,0.545867]
[1720934853505,1.08031951,3207.6,3207.0,0.545867]
[1720934853717,1.08031951,3207.6,3206.9,2.3403]
[1720934855100,1.08031951,3207.6,3207.2,0.02943429]
[1720934855669,1.08031951,3207.6,3207.4,0.02942235]
[1720934856503,0.32670251,3207.7,3207.2,2.3403]
[1720934856807,1.08037178,3207.6,3207.2,2.3403]
[1720934857021,0.32670251,3207.7,3207.2,2.3403]
[1720934857167,1.08035886,3207.6,3207.2,2.3403]
[1720934857368,1.08035886,3207.5,3207.2,2.3403]
[1720934857715,1.08035886,3207.4,3207.2,2.3403]
[1720934857882,1.08035886,3207.3,3207.2,2.3403]
[1720934859063,1.08035886,3207.3,3206.6,2.3403]
[1720934859275,1.08035886,3207.2,3206.6,3.31633]
[1720934859567,1.08035886,3207.1,3206.6,3.31633]
[1720934859769,0.32670251,3207.7,3206.6,3.31633]
[1720934859971,1.08037954,3207.6,3206.6,3.31633]
[1720934860270,1.08037954,3207.5,3206.8,3.11833]
[1720934860581,1.08037954,3207.4,3206.9,2.3403]
[1720934860780,1.08037954,3207.3,3206.9,2.3403]
[1720934860980,1.08037954,3207.2,3206.9,2.3403]
[1720934861177,1.08037954,3207.1,3206.9,2.3403]
[1720934861399,0.32670251,3207.7,3207.0,0.545863]
[1720934861610,1.08031735,3207.6,3207.2,0.02935022]
[1720934861775,1.08031735,3207.5,3207.2,0.02935022]
[1720934861976,1.08031735,3207.4,3207.2,0.02935022]
[1720934862203,1.08031735,3207.3,3207.2,0.02935022]
[1720934863381,1.08032885,3207.6,3207.2,0.02935022]
[1720934863686,1.08032885,3207.6,3207.4,0.02929712]
[1720934865696,1.08032885,3207.6,3207.0,3.663993]
[1720934865891,1.08032885,3207.6,3207.1,0.9122543]
[1720934866483,0.32670251,3207.7,3207.1,0.9122543]
[1720934866679,1.08027124,3207.5,3207.2,3.11798]
[1720934866906,0.32670251,3207.7,3207.3,2.3735]
[1720934867120,1.08021448,3207.4,3207.3,2.3735]
[1720934867317,1.08021448,3207.4,3207.3,3.01387343]
[1720934867785,1.08021448,3207.4,3207.3,6.13174343]
[1720934868324,1.08021448,3207.4,3207.3,9.24962343]
[1720934868693,0.32665907,3208.2,3207.3,9.24962343]
[1720934868694,0.32665907,3208.2,3207.3,6.13175343]
[1720934868910,1.08005277,3208.1,3207.8,3.1174]
[1720934869220,1.08005277,3208.0,3207.9,0.54909]
[1720934869428,1.08005277,3208.0,3207.9,3.66639]
[1720934869596,0.32662887,3208.6,3208.0,3.11718]
[1720934869795,1.07994681,3208.5,3208.0,3.11718]
[1720934870006,1.07994681,3208.4,3208.1,2.3735]
[1720934870221,1.07994681,3208.3,3208.2,3.666048]
[1720934870398,0.92994681,3208.3,3208.2,3.666048]
[1720934872631,0.92994681,3208.3,3208.2,0.549068]
[1720934872794,0.92994681,3208.3,3208.1,5.4906]
[1720934872998,0.32662887,3208.6,3208.1,5.4906]
[1720934873485,0.32662887,3208.6,3208.2,3.117]
[1720934875192,0.32662887,3208.6,3208.1,5.49059]
[1720934875396,0.32662887,3208.6,3208.2,0.549059]
[1720934878435,0.32662887,3208.6,3208.1,2.3735]
[1720934878734,0.32662887,3208.6,3207.8,9.7935]
[1720934880099,0.32662887,3208.6,3207.8,2.3735]
[1720934880298,1.07999896,3208.5,3207.8,2.3735]
[1720934880502,1.07999896,3208.4,3207.8,2.3735]
[1720934880709,0.32662887,3208.6,3207.8,2.3735]
[1720934880710,1.07999896,3208.5,3207.8,2.3735]
[1720934880941,1.07999896,3208.4,3207.4,2.3735]
[1720934881123,1.07999896,3208.5,3207.5,0.61317534]
[1720934881436,1.07999896,3208.5,3207.4,2.3735]
[1720934882401,1.08004729,3208.4,3207.4,5.49127]
[1720934882606,1.08004729,3208.3,3207.4,5.49127]
[1720934882842,1.08004729,3208.2,3207.4,5.49127]
[1720934883107,1.08004729,3208.1,3207.4,5.49127]
[1720934883304,1.08004729,3208.1,3207.3,3.0]
[1720934883305,1.08004729,3208.0,3207.6,3.11757]
[1720934883548,0.32662887,3208.6,3207.6,3.11757]
[1720934883549,0.32662887,3208.6,3207.8,3.1173]
[1720934883746,1.07995423,3208.5,3207.8,3.1173]
[1720934883900,0.32662887,3208.6,3207.9,3.11723]
[1720934883901,1.07995423,3208.4,3207.9,3.11723]
[1720934884102,1.07995423,3208.3,3207.9,3.11723]
[1720934884405,1.07995423,3208.2,3207.9,3.976863]
[1720934884605,0.32662887,3208.6,3208.0,3.11719]
[1720934884841,1.07992231,3208.5,3208.0,3.11719]
[1720934885046,1.07992231,3208.4,3208.0,3.11719]
[1720934885215,1.07992231,3208.3,3208.0,3.11719]
[1720934885422,1.07992231,3208.2,3208.1,0.3976823]
[1720934885638,1.07990046,3208.2,3208.1,0.3976823]
[1720934885946,0.32662887,3208.6,3208.2,5.47873]
[1720934886116,1.07985449,3208.5,3208.2,5.47873]